bitfinex/quotes_ETHUSD_20260109
["timestamp","ask_amount","ask_price","bid_price","bid_amount"]
[1767992666886,0.00081202,3069.5,3069.0,0.90010276]
[1767992667820,0.256,3070.1,3069.2,0.90010276]
[1767992668023,4.22843131,3070.3,3069.2,0.90010276]
[1767992668024,4.48443131,3070.3,3069.2,0.90010276]
[1767992668224,0.44852344,3070.2,3069.2,0.90010276]
[1767992668937,4.48443131,3070.3,3069.2,0.90010276]
[1767992668938,0.256,3070.3,3069.2,0.90010276]
[1767992669229,0.00080312,3070.4,3069.2,0.90010276]
[1767992669796,0.00080312,3070.4,3069.4,0.90010276]
[1767992670001,0.00080312,3070.4,3069.6,0.90010276]
[1767992671822,0.00080312,3070.4,3069.8,0.90010276]
[1767992672021,0.256,3071.3,3070.2,0.90010276]
[1767992672221,0.256,3071.3,3070.3,0.90010276]
[1767992672424,0.00080696,3071.5,3070.3,0.90010276]
[1767992673004,3.25656168,3071.5,3070.3,0.90010276]
[1767992673734,6.5123164,3071.5,3070.3,0.90010276]
[1767992673938,0.77517172,3071.5,3070.4,0.97765634]
[1767992675323,1.75050296,3071.5,3070.4,1.23365634]
[1767992676314,5.00627454,3071.5,3070.5,3.25679856]
[1767992676834,0.00080696,3071.5,3070.6,0.97765634]
[1767992677239,3.2565569,3071.5,3070.6,0.97765634]
[1767992679233,0.00080696,3071.5,3070.6,0.97765634]
[1767992680044,0.00080696,3071.5,3070.6,0.97765634]
[1767992681836,0.9761382,3071.5,3070.3,0.97765634]
[1767992682041,0.9761382,3071.5,3070.5,0.256]
[1767992682240,0.7487407,3071.4,3070.5,0.256]
[1767992684115,4.00462756,3071.4,3070.5,0.256]
[1767992685041,4.00462756,3071.4,3070.2,3.25790921]
[1767992685042,4.00462756,3071.4,3070.3,0.97765634]
[1767992685247,4.00462756,3071.4,3070.4,0.97765634]
[1767992687051,0.7487407,3071.4,3070.5,0.97765634]
[1767992687240,4.00461902,3071.4,3070.5,0.97765634]
[1767992687442,0.49807572,3071.3,3070.5,0.97765634]
[1767992688034,0.001,3071.2,3070.5,0.97765634]
[1767992690652,6.70870715,3071.5,3070.9,0.99217503]
[1767992690653,0.00080696,3071.5,3070.9,0.99217503]
[1767992690957,0.00080672,3072.2,3071.4,0.99217503]
[1767992691159,0.00080672,3072.2,3071.1,0.00080704]
[1767992691160,0.00080672,3072.2,3071.6,0.99217503]
[1767992692056,0.00080672,3072.2,3071.3,0.99217503]
[1767992692257,0.00080672,3072.2,3071.5,0.256]
[1767992692553,0.00080672,3072.2,3071.3,0.99217503]
[1767992692745,0.99765324,3072.1,3071.3,0.256]
[1767992692936,1.74858959,3072.1,3071.3,0.256]
[1767992693659,0.75093635,3072.1,3071.3,4.50407204]
[1767992693857,0.00080672,3072.2,3071.3,4.50407204]
[1767992694244,0.00080672,3072.2,3071.3,1.24817503]
[1767992697372,0.00080672,3072.2,3071.4,0.99217503]
[1767992698988,0.00080672,3072.2,3071.5,0.99217503]
[1767992699783,0.001,3071.9,3071.5,0.99217503]
[1767992699983,0.001,3071.9,3071.7,0.99217503]
[1767992700497,0.001,3071.9,3071.5,0.99217503]
[1767992701891,0.001,3071.9,3071.1,3.25694163]
[1767992701892,0.001,3071.9,3071.4,0.99217503]
[1767992702093,0.001,3071.9,3071.2,0.99217503]
[1767992702294,0.001,3071.9,3071.2,1.24817503]
[1767992702762,0.001,3071.9,3071.3,0.99217503]
[1767992702964,0.32661024,3071.9,3071.3,0.99217503]
[1767992704203,0.32661024,3071.9,3071.2,0.94299913]
[1767992704902,3.58192499,3071.9,3071.2,0.94299913]
[1767992706004,0.32661024,3071.9,3071.2,0.94299913]
[1767992707298,3.58192568,3071.9,3071.2,0.94299913]
[1767992707486,0.32661024,3071.9,3071.2,0.94299913]
[1767992707691,0.001,3071.9,3071.2,0.94299913]
[1767992708701,3.25631663,3071.9,3071.4,0.94299913]
[1767992708899,0.95586173,3071.9,3071.1,0.00080704]
[1767992710975,0.95486173,3071.7,3071.1,0.00080704]
[1767992711173,1.37598993,3071.7,3071.1,0.00080704]
[1767992711390,0.95486173,3071.6,3071.1,0.00080704]
[1767992712002,0.95486173,3071.6,3071.4,0.002]
[1767992712198,0.95586173,3071.6,3071.4,0.002]
[1767992713928,0.001,3071.6,3071.4,0.002]
[1767992714133,0.001,3071.6,3071.1,0.94380617]
[1767992714134,0.36776759,3071.5,3071.1,0.94380617]
[1767992714702,1.32262932,3071.5,3070.5,0.94499913]
[1767992714933,0.11019267,3071.1,3070.5,1.20099913]
[1767992715597,0.11019267,3071.1,3070.6,0.94299913]
[1767992717116,1.32343636,3071.5,3071.1,0.94299913]
[1767992717117,0.00080704,3071.5,3071.1,0.94299913]
[1767992717303,0.00080704,3071.5,3070.5,0.258]
[1767992717304,0.00080704,3071.5,3070.6,0.94299913]
[1767992717720,1.52904884,3071.5,3070.5,0.002]
[1767992718415,0.57418711,3071.5,3070.5,0.002]
[1767992718616,0.57418711,3071.5,3069.8,0.94499913]
[1767992718617,0.00080272,3070.6,3069.8,0.94499913]
[1767992718817,0.0008032,3070.4,3069.4,0.94299913]
[1767992719235,3.25770783,3070.4,3069.4,0.94299913]
[1767992719392,0.92457015,3070.3,3069.4,0.94299913]
[1767992721225,0.92457015,3070.3,3069.5,0.94299913]
[1767992721729,0.0008032,3070.4,3069.5,0.94299913]
[1767992722027,3.25773382,3070.4,3069.5,0.94299913]
[1767992723799,6.51466444,3070.4,3069.5,0.94299913]
[1767992724200,3.25773382,3070.4,3069.5,0.94299913]
[1767992724831,3.25773382,3070.4,3069.7,0.002]
[1767992725136,0.001,3070.0,3069.7,0.002]
[1767992725721,0.001,3070.0,3069.5,0.94299913]
[1767992726032,0.001,3070.0,3069.4,0.002]
[1767992727221,0.001,3070.0,3069.4,0.94499913]
[1767992730541,0.95586173,3070.0,3069.4,0.002]
[1767992730744,0.44791153,3070.0,3069.4,0.002]
[1767992732421,3.70526726,3070.0,3069.4,0.002]
[1767992732923,0.97518891,3069.9,3069.4,0.002]
[1767992733127,1.00774205,3069.9,3068.7,0.97024491]
[1767992733338,0.00081283,3069.5,3068.7,0.0008036]
[1767992733644,0.256,3069.4,3068.7,0.0008036]
[1767992734416,3.25807187,3069.3,3068.7,0.0008036]
[1767992735118,3.25607187,3069.3,3068.7,0.0008036]
[1767992735448,3.25797077,3069.4,3068.7,0.97024491]
[1767992735657,3.25868159,3069.5,3068.7,0.97024491]
[1767992735852,6.51655035,3069.5,3068.7,0.0008036]
[1767992736563,9.77441911,3069.5,3068.7,0.0008036]
[1767992736861,6.51655035,3069.5,3068.7,0.0008036]
[1767992737226,6.51655035,3069.5,3069.0,0.002]
[1767992737560,1.72761815,3069.4,3068.7,0.0008036]
[1767992737739,0.256,3069.3,3068.7,0.0008036]
[1767992738857,3.25817802,3069.2,3068.7,0.0008036]
[1767992740757,3.51410412,3069.3,3068.7,0.0008036]
[1767992741428,6.77220824,3069.3,3068.7,0.0008036]
[1767992741633,0.75246375,3069.2,3068.7,0.0008036]
[1767992742262,3.51408568,3069.3,3068.7,0.0008036]
[1767992742468,3.51408568,3069.3,3068.2,0.97144131]
[1767992742469,6.77217136,3069.3,3068.2,0.97144131]
[1767992742672,0.0008036,3069.1,3068.2,0.97144131]
[1767992746037,0.0008036,3069.1,3068.3,0.96944131]
[1767992746383,0.0008036,3069.1,3068.4,0.96944131]
[1767992747448,0.0008036,3069.1,3068.6,0.96944131]
[1767992749666,0.0008036,3069.1,3068.8,0.96113018]
[1767992760755,0.94187096,3069.1,3068.7,0.002]
[1767992761061,0.0008036,3069.1,3068.8,0.96113018]
[1767992762560,0.0008036,3069.1,3068.8,0.95148818]
[1767992765591,0.0008036,3069.1,3068.8,0.86978956]
[1767992765783,0.94962669,3069.1,3068.4,0.002]
[1767992765965,1.05901754,3068.8,3068.4,0.002]
[1767992766357,0.11019445,3068.8,3068.4,0.002]
[1767992769259,0.10898428,3068.8,3068.4,0.002]
[1767992769682,4.65317644,3068.8,3068.4,0.002]
[1767992769987,0.44572359,3068.8,3068.4,0.002]
[1767992770186,0.10898428,3068.8,3068.4,0.91713293]
[1767992773152,0.10898428,3068.8,3068.4,0.002]
[1767992773285,7.57509809,3068.8,3068.4,0.002]
[1767992773685,0.94882309,3068.7,3068.2,0.002]
[1767992773886,1.38056836,3068.6,3068.2,0.002]
[1767992775813,1.37856836,3068.6,3068.2,0.002]
[1767992776019,0.42974527,3068.6,3068.2,0.002]
[1767992776213,0.36598428,3068.8,3068.2,0.002]
[1767992776596,0.10998428,3068.8,3068.2,0.002]
[1767992779208,4.31742696,3068.8,3068.2,0.002]
[1767992781222,3.36860387,3068.8,3068.2,0.002]
[1767992781519,0.33686039,3068.7,3068.2,0.002]
[1767992785795,0.33686039,3068.7,3068.5,0.002]
[1767992785996,1.28568348,3068.7,3068.2,0.002]
[1767992786396,4.54439944,3068.7,3068.2,0.002]
[1767992786609,0.94882309,3068.6,3068.2,0.002]
[1767992786927,0.45443994,3068.5,3068.2,0.002]
[1767992788337,0.33686039,3068.7,3068.2,0.002]
[1767992788509,3.59558542,3068.7,3068.2,0.002]
[1767992790437,1.28568348,3068.7,3068.2,0.002]
[1767992790738,0.94882309,3068.6,3068.2,0.002]
[1767992790944,0.256,3068.5,3068.2,0.002]
[1767992791243,1.63613982,3068.5,3068.2,0.002]
[1767992791408,0.000802,3068.4,3067.8,0.91513293]
[1767992791820,0.000802,3068.4,3067.6,1.52321971]
[1767992792042,0.94962509,3068.4,3067.6,1.52321971]
[1767992792341,0.25857649,3068.3,3067.6,1.52321971]
[1767992792710,0.25857649,3068.3,3067.6,0.60808678]
[1767992792711,1.20739958,3068.3,3067.6,0.60808678]
[1767992793225,0.25857649,3068.3,3067.7,0.92041259]
[1767992793934,0.25857649,3068.3,3067.6,0.60808678]
[1767992793935,0.94018842,3068.2,3067.6,0.60808678]
[1767992794239,5.74229625,3068.0,3067.3,0.92041259]
[1767992794414,5.99829625,3068.0,3067.3,0.92041259]
[1767992795043,9.25777376,3068.0,3067.3,0.92041259]
[1767992795249,10.19796218,3068.0,3067.1,0.92321355]
[1767992795544,1.15438966,3067.9,3067.1,4.18361856]
[1767992795735,0.256,3068.0,3067.3,0.92041259]
[1767992796135,3.25986605,3068.4,3067.4,0.92041259]
[1767992796136,0.000802,3068.4,3067.4,0.92041259]
[1767992796341,0.256,3068.1,3067.4,0.92041259]
[1767992796727,3.51518063,3068.3,3067.4,0.92041259]
[1767992796912,4.19268751,3068.3,3067.4,0.92041259]
[1767992797442,0.000802,3068.4,3067.5,0.92041259]
[1767992797744,3.25988644,3068.4,3067.7,0.92041259]
[1767992798848,0.000802,3068.4,3067.7,0.92041259]
[1767992799726,0.001,3068.8,3068.3,0.92041259]
[1767992800128,3.25915132,3069.1,3068.7,0.92041259]
[1767992800129,0.0008036,3069.1,3068.7,0.92041259]
[1767992800951,0.0008036,3069.1,3068.4,0.92041259]
[1767992801349,0.0008036,3069.1,3068.5,0.92041259]
[1767992801550,0.0008036,3069.1,3068.6,0.92041259]
[1767992801848,0.0008036,3069.1,3068.6,0.41792632]
[1767992802549,0.0008036,3069.1,3068.6,3.6766878]
[1767992803321,0.0008036,3069.1,3068.6,0.41792632]
[1767992803836,0.0008036,3069.1,3068.6,3.67674047]
[1767992804038,0.0008036,3069.1,3068.7,0.92041259]
[1767992805446,0.0008036,3069.1,3068.8,0.92041259]
[1767992806988,0.0008036,3069.1,3068.8,4.17898676]
[1767992807156,0.0008036,3069.1,3068.9,0.92041259]
[1767992808236,0.00081283,3069.5,3068.9,0.92041259]
[1767992808951,0.00081283,3069.5,3069.0,4.24804805]
[1767992809463,0.00081283,3069.5,3069.0,7.5064384]
[1767992809955,0.00081283,3069.5,3069.0,4.24804805]
[1767992811357,0.00081283,3069.5,3069.0,0.9896577]
[1767992811545,0.00081283,3069.5,3068.8,3.2585664]
[1767992811546,0.00081283,3069.5,3068.8,4.24818157]
[1767992811746,1.02263968,3069.5,3068.8,0.9896577]
[1767992812143,1.95156143,3069.5,3068.8,3.25854787]
[1767992812827,1.95156143,3069.5,3068.7,3.25945656]
[1767992813028,0.96147489,3069.4,3068.7,0.00080368]
[1767992813228,5.74229625,3068.9,3068.1,0.9896577]
[1767992813433,0.03255314,3068.8,3068.1,0.9896577]
[1767992813630,0.03255314,3068.8,3068.0,0.00080208]
[1767992813835,0.03255314,3068.5,3068.0,0.00080208]
[1767992814151,0.96147489,3068.3,3067.6,0.002]
[1767992814352,6.671218,3068.0,3067.1,0.00280096]
[1767992814530,0.00080096,3067.5,3066.9,0.002]
[1767992814936,0.00080096,3067.5,3066.0,0.9916577]
[1767992814937,0.03255314,3067.1,3066.0,0.9916577]
[1767992815168,0.0008012,3067.4,3066.4,3.26108511]
[1767992815329,0.0008012,3067.4,3066.4,0.75121017]
[1767992815330,0.256,3067.0,3066.4,0.75121017]
[1767992815664,0.96147489,3067.3,3066.4,0.75121017]
[1767992815665,0.256,3067.2,3066.4,3.26114479]
[1767992815868,0.256,3067.2,3066.4,3.26112876]
[1767992816161,0.256,3067.2,3066.3,4.25087687]
[1767992816360,0.256,3067.2,3066.4,6.52228778]
[1767992816562,0.256,3067.2,3066.4,3.21113464]
[1767992816761,0.96147489,3067.1,3066.0,0.9916577]
[1767992816960,1.21747489,3067.1,3066.3,3.26118936]
[1767992817129,1.21747489,3067.1,3066.1,4.25190913]
[1767992817130,1.21747489,3067.1,3066.4,3.26114493]
[1767992817333,1.21747489,3067.1,3066.2,3.26135966]
[1767992817574,1.66849789,3067.1,3066.2,6.52272552]
[1767992817757,0.92892175,3067.0,3066.1,0.0008032]
[1767992817956,0.03255314,3066.6,3066.1,0.0008032]
[1767992818270,0.28855314,3066.8,3066.1,0.0008032]
[1767992818767,0.03255314,3066.6,3066.1,0.0008032]
[1767992818940,0.28855314,3066.8,3066.1,0.0008032]
[1767992819135,0.92972271,3067.5,3066.1,0.9904609]
[1767992819359,0.92972271,3067.5,3066.1,0.0008032]
[1767992819360,0.03255314,3066.8,3066.1,0.0008032]
[1767992819956,3.54930286,3066.8,3066.1,0.0008032]
[1767992820157,0.35493029,3066.7,3066.1,0.0008032]
[1767992820536,0.96147489,3066.6,3066.1,0.0008032]
[1767992820737,0.96147489,3066.6,3064.3,3.26330462]
[1767992820738,0.92892175,3066.1,3063.7,0.9896577]
[1767992820941,0.0008032,3066.5,3064.7,0.9896577]
[1767992820942,0.256,3066.0,3064.7,0.9896577]
[1767992821140,0.256,3066.0,3064.1,3.26350277]
[1767992821141,0.0008032,3066.5,3065.3,0.9896577]
[1767992821440,0.0008012,3067.4,3066.4,0.9916577]
[1767992821441,0.256,3067.2,3066.4,0.9916577]
[1767992821759,4.18982922,3067.4,3066.4,0.002]
[1767992821959,0.41906302,3067.3,3066.4,0.002]
[1767992822368,0.41906302,3067.3,3066.4,0.9916577]
[1767992822574,0.0008012,3067.4,3066.6,0.9896577]
[1767992823338,0.0008012,3067.4,3066.8,0.90108398]
[1767992823541,0.0008012,3067.4,3067.0,0.90108398]
[1767992823778,0.00080208,3068.4,3067.3,0.90108398]
[1767992823949,0.00080208,3068.4,3067.4,1.15708398]
[1767992824150,0.32597587,3068.3,3067.4,1.15708398]
[1767992824794,0.00080208,3068.4,3067.5,0.90108398]
[1767992825763,0.00080208,3068.4,3067.5,4.16105022]
[1767992825964,0.00080208,3068.4,3067.6,0.256]
[1767992826690,0.00080208,3068.4,3067.5,4.16105032]
[1767992826860,0.35236418,3068.4,3067.6,0.256]
[1767992828290,0.35236418,3068.4,3067.7,0.90108398]
[1767992828501,0.00080208,3068.4,3067.7,0.90108398]
[1767992828674,0.25680368,3069.1,3068.0,0.00080216]
[1767992828872,0.25680368,3069.1,3068.2,0.90108398]
[1767992828873,0.00080368,3069.1,3068.2,0.90108398]
[1767992829086,0.00081283,3069.5,3068.8,0.90108398]
[1767992829287,0.00081283,3069.5,3068.8,1.15708398]
[1767992829594,0.00081283,3069.5,3068.9,3.25849652]
[1767992830291,0.00081283,3069.5,3068.9,4.1595805]
[1767992830875,0.00081283,3069.5,3068.9,7.41807702]
[1767992831074,0.00081283,3069.5,3068.9,4.1595805]
[1767992831272,0.001,3070.0,3069.2,0.90108398]
[1767992831583,0.001,3070.0,3069.4,3.25796572]
[1767992831898,0.0008032,3070.4,3069.5,0.90108398]
[1767992832599,0.00080704,3071.5,3070.4,0.90108398]
[1767992832807,0.95533761,3071.4,3070.4,0.256]
[1767992833490,0.95533761,3071.4,3070.2,0.0008028]
[1767992833699,9.76829731,3071.5,3070.2,0.0008028]
[1767992833700,7.46723809,3071.3,3070.2,0.0008028]
[1767992834558,7.72323809,3071.3,3070.2,0.0008028]
[1767992834777,0.77232381,3071.2,3070.2,0.0008028]
[1767992836198,0.77232381,3071.2,3070.2,0.90188678]
[1767992836399,3.25591537,3071.4,3070.2,0.90188678]
[1767992836571,0.00080704,3071.5,3070.2,0.90188678]
[1767992837173,3.256553,3071.5,3070.2,0.90188678]
[1767992837893,0.00080704,3071.5,3070.2,0.90188678]
[1767992838197,3.60789421,3071.5,3070.3,0.90108398]
[1767992838873,6.86364397,3071.5,3070.3,0.90108398]
[1767992839072,3.60789421,3071.5,3070.3,0.90108398]
[1767992839597,0.35214445,3071.5,3070.3,0.90108398]
[1767992840183,0.00080704,3071.5,3070.3,0.90108398]
[1767992840396,0.00080704,3071.5,3070.5,0.90108398]
[1767992840601,0.001,3071.6,3071.1,0.9018911]
[1767992840896,0.001,3071.9,3071.1,0.9018911]
[1767992841088,0.001,3071.9,3071.3,0.90108398]
[1767992841265,0.001,3072.3,3071.3,0.90108398]
[1767992841266,0.00027332,3072.3,3071.3,0.90108398]
[1767992841466,3.25406529,3073.1,3071.8,0.90189078]
[1767992841677,0.95533761,3073.5,3071.9,0.90108398]
[1767992842397,3.25400537,3073.2,3071.9,0.90108398]
[1767992842602,6.50754388,3073.4,3072.0,0.90108398]
[1767992842786,6.50754388,3073.4,3072.1,0.256]
[1767992842991,3.50936172,3073.8,3072.2,0.90191808]
[1767992842992,4.46465283,3073.8,3072.2,0.90191808]
[1767992843169,0.3510166,3073.6,3072.2,0.90191808]
[1767992843367,0.256,3073.8,3072.2,0.90191808]
[1767992843598,0.95533761,3074.2,3072.4,0.90108398]
[1767992843807,0.95533761,3074.2,3072.6,0.90108398]
[1767992844102,0.001,3074.3,3072.6,0.90108398]
[1767992844596,0.95533761,3074.1,3072.7,0.256]
[1767992844795,3.25489587,3074.0,3072.7,0.256]
[1767992845024,0.00180544,3074.0,3073.3,0.90188838]
[1767992845168,0.00180544,3074.0,3073.4,0.90108398]
[1767992845371,0.00180544,3074.0,3073.3,0.0008044]
[1767992845372,0.00180544,3074.0,3073.3,0.2568044]
[1767992845676,0.0008044,3073.7,3073.3,0.25517704]
[1767992845885,0.00180544,3074.0,3073.3,1.15626102]
[1767992846063,0.00180544,3074.0,3073.3,1.1570655]
[1767992847011,0.00180544,3074.0,3073.3,0.44190611]
[1767992847172,0.00180544,3074.0,3073.4,0.256]
[1767992848191,0.00180544,3074.0,3073.3,0.00080448]
[1767992849292,0.00180544,3074.0,3073.3,0.90188846]
[1767992851122,0.00180544,3074.0,3073.4,0.256]
[1767992851320,0.00180544,3074.0,3073.4,1.15708398]
[1767992851693,0.00180544,3074.0,3073.4,1.59825596]
[1767992851890,0.00180544,3074.0,3073.3,0.00080448]
[1767992852096,0.00180544,3074.0,3073.3,0.25680448]
[1767992853234,0.00180544,3074.0,3073.3,0.00080448]
[1767992856038,0.00180544,3074.0,3073.4,0.90470699]
[1767992856603,0.00180544,3074.0,3073.5,1.16070699]
[1767992856929,0.00180544,3074.0,3073.6,0.90470699]
[1767992857133,0.00180544,3074.0,3073.6,4.15815375]
[1767992857333,0.00080632,3074.6,3073.7,0.90470699]
[1767992858436,0.00080632,3074.6,3073.8,0.256]
[1767992859909,0.00080632,3074.6,3073.9,0.256]
[1767992860340,0.00080632,3074.6,3073.7,0.90470699]
[1767992860523,0.00080632,3074.6,3073.6,0.00280552]
[1767992860715,0.00080632,3074.6,3073.7,0.256]
[1767992861849,0.32611136,3074.6,3073.7,0.256]
[1767992864144,3.5786539,3074.6,3073.7,0.256]
[1767992867235,0.32611136,3074.6,3073.8,0.90470699]
[1767992867435,0.00080632,3074.6,3073.8,0.90470699]
[1767992867644,3.25332246,3074.6,3073.6,0.00280552]
[1767992867847,7.50574159,3074.6,3073.6,0.25880552]
[1767992868171,0.99990299,3074.4,3073.6,0.00280552]
[1767992868528,4.25260248,3074.4,3073.6,0.00280552]
[1767992869760,7.50530197,3074.4,3073.6,0.00280552]
[1767992870562,0.00080552,3074.0,3073.3,0.00280448]
[1767992871134,3.25389595,3074.0,3073.3,0.00280448]
[1767992871335,0.42259159,3073.9,3073.6,0.002]
[1767992871530,0.42259159,3073.9,3073.3,0.00280448]
[1767992873838,0.00080552,3074.0,3073.3,0.00280448]
[1767992875334,0.001,3074.3,3073.7,0.98954201]
[1767992875534,0.001,3074.3,3073.8,0.98954201]
[1767992875735,0.001,3074.3,3073.7,0.256]
[1767992877266,0.001,3074.3,3073.8,3.2533021]
[1767992877467,0.001,3074.3,3073.9,0.98954201]
[1767992879480,0.001,3074.3,3073.9,4.24264483]
[1767992880753,0.001,3074.3,3073.9,3.25310282]
[1767992880960,0.001,3074.3,3073.8,0.256]
[1767992881169,0.001,3074.3,3073.8,3.50924681]
[1767992881479,0.001,3074.3,3073.8,1.24554201]
[1767992881855,0.001,3074.3,3073.8,0.98954201]
[1767992882103,0.001,3074.3,3073.8,4.24278518]
[1767992882469,0.001,3074.3,3073.9,0.98954201]
[1767992883066,0.001,3074.3,3073.7,3.50940002]
[1767992883572,0.001,3074.0,3073.7,4.46581339]
[1767992884551,0.001,3074.0,3073.6,0.0028056]
[1767992884762,0.001,3074.0,3073.6,0.2588056]
[1767992885755,0.001,3074.0,3073.6,0.0028056]
[1767992888279,0.0018056,3074.0,3073.6,0.00161557]
[1767992889912,0.0018056,3074.0,3073.6,0.95802894]
[1767992894892,0.0018056,3074.0,3073.6,0.00161557]
[1767992895061,0.0018056,3074.0,3073.9,0.002]
[1767992895262,0.0018056,3074.0,3073.9,0.00082304]
[1767992899185,0.0018056,3074.0,3073.6,0.00161557]
[1767992900802,0.0018056,3074.0,3073.6,0.00043315]
[1767992903101,0.0018056,3074.0,3073.3,0.00280448]
[1767992903102,0.91276354,3074.0,3073.3,0.00280448]
[1767992904468,0.91276354,3074.0,3073.3,3.25657412]
[1767992904675,0.0018056,3074.0,3073.5,3.25360046]
[1767992904875,0.0018056,3074.0,3073.4,0.256]
[1767992905181,0.0018056,3074.0,3073.4,1.21241337]
[1767992906016,0.0018056,3074.0,3073.5,0.95641337]
[1767992906306,0.001,3074.3,3073.7,0.95641337]
[1767992906893,0.001,3074.3,3073.9,0.95641337]
[1767992907110,0.91176426,3074.6,3074.0,0.256]
[1767992907510,0.00080736,3075.3,3074.2,0.95721977]
[1767992908007,0.00083908,3075.7,3075.0,0.95641337]
[1767992908307,0.00083908,3075.7,3075.1,0.256]
[1767992909410,0.00083908,3075.7,3075.2,3.25182101]
[1767992909577,0.00083908,3075.7,3075.2,6.50364202]
[1767992909779,0.00083908,3075.7,3075.3,0.95641337]
[1767992910000,4.16120227,3076.7,3075.3,0.95641337]
[1767992910186,0.91095794,3076.5,3075.3,0.95725328]
[1767992910507,0.91095794,3076.5,3075.4,0.256]
[1767992911212,0.001,3076.8,3075.5,0.95641337]
[1767992911513,0.001,3076.8,3075.7,0.95641337]
[1767992911879,0.001,3076.8,3075.9,0.95641337]
[1767992912216,0.001,3076.8,3076.0,1.21241337]
[1767992912712,0.001,3076.8,3076.1,0.95641337]
[1767992913932,0.001,3076.8,3076.1,3.25083292]
[1767992914222,0.001,3076.8,3075.6,3.25135214]
[1767992914223,0.001,3076.8,3075.7,3.25125478]
[1767992914381,0.001,3076.8,3075.8,0.256]
[1767992915009,0.001,3076.8,3075.9,3.2510212]
[1767992915781,0.001,3076.8,3075.9,6.50216196]
[1767992916001,0.001,3076.8,3076.0,0.9711476]
[1767992917733,0.001,3076.8,3075.4,0.9711476]
[1767992917935,0.001,3076.8,3075.6,0.9711476]
[1767992917936,0.20521995,3076.8,3075.6,0.9711476]
[1767992918092,0.001,3076.8,3076.1,4.22200755]
[1767992918285,0.3260963,3076.8,3076.1,4.47800755]
[1767992918484,0.001,3076.8,3076.1,4.47800755]
[1767992919383,0.001,3076.8,3076.3,0.002]
[1767992919654,0.001,3076.8,3076.3,0.9731476]
[1767992919817,0.001,3076.5,3076.4,3.25055259]
[1767992920024,0.001,3076.8,3076.3,3.25261909]
[1767992922090,0.001,3076.8,3076.3,0.9731476]
[1767992924116,0.001,3076.8,3076.5,0.9711476]
[1767992926228,0.001,3076.8,3076.6,0.9711476]
[1767992926522,0.00080488,3077.1,3076.6,0.9711476]
[1767992928013,3.24899607,3077.9,3076.5,6.5007888]
[1767992928014,0.20421995,3078.1,3077.0,0.9711476]
[1767992928194,0.25680744,3078.3,3077.3,0.97195392]
[1767992928195,0.00080744,3078.3,3077.3,0.97195392]
[1767992928400,0.00080744,3078.3,3077.5,0.9711476]
[1767992928715,0.00080744,3078.3,3077.3,0.00080632]
[1767992928716,0.00080744,3078.3,3077.7,0.9711476]
[1767992929325,0.00080744,3078.3,3077.8,1.20797788]
[1767992929492,0.00080744,3078.3,3077.9,0.95197788]
[1767992930122,0.00080744,3078.3,3077.4,0.95197788]
[1767992930337,0.00080744,3078.3,3077.6,4.20123967]
[1767992930507,0.00080744,3078.3,3077.8,0.95197788]
[1767992931337,0.00080744,3078.3,3077.9,0.95197788]
[1767992931645,0.00080632,3078.6,3078.1,0.95197788]
[1767992932304,0.00080632,3078.6,3078.2,0.256]
[1767992932915,0.00080632,3078.6,3077.9,0.25680752]
[1767992934439,0.3257734,3078.6,3077.9,0.25680752]
[1767992934677,0.00080632,3078.6,3078.0,1.20797788]
[1767992934841,0.00080632,3078.6,3078.1,0.95197788]
[1767992935616,0.00080632,3078.6,3078.2,0.256]
[1767992936132,0.00080632,3078.6,3078.1,0.95197788]
[1767992936322,0.00080632,3078.6,3078.2,0.256]
[1767992936716,0.00080632,3078.6,3078.1,0.95197788]
[1767992936924,0.00080632,3078.6,3078.2,0.256]
[1767992937842,0.00080632,3078.6,3077.9,0.25680752]
[1767992938659,0.00080632,3078.6,3077.9,0.00080752]
[1767992938829,0.65057527,3078.6,3078.0,0.256]
[1767992939632,0.65057527,3078.6,3077.9,0.00080752]
[1767992939828,0.10363373,3078.0,3077.9,0.00080752]
[1767992942368,0.65057527,3078.6,3077.9,0.00080752]
[1767992942369,3.2490771,3078.6,3077.9,0.00080752]
[1767992942589,0.64972188,3078.5,3077.9,0.00080752]
[1767992943149,0.64972188,3078.5,3077.9,0.92355832]
[1767992943463,0.00080632,3078.6,3077.9,0.92355832]
[1767992943987,0.00080632,3078.6,3078.2,0.9227508]
[1767992944129,0.00080632,3078.6,3078.3,0.255]
[1767992944531,0.00080632,3078.6,3078.3,1.1777508]
[1767992945687,0.00080632,3078.6,3078.4,0.255]
[1767992945972,0.00080632,3078.6,3078.3,0.255]
[1767992946140,0.00080632,3078.6,3077.8,0.002]
[1767992946141,0.00080632,3078.6,3077.1,0.9227508]
[1767992946142,0.03255314,3078.4,3077.1,0.9227508]
[1767992946339,0.03255314,3078.4,3076.7,0.00080496]
[1767992946340,0.03255314,3078.2,3077.3,0.92355712]
[1767992947133,6.49790006,3078.3,3077.3,0.92355712]
[1767992947363,0.65304532,3078.2,3077.3,0.92355712]
[1767992950637,0.03255314,3078.0,3077.3,0.00080632]
[1767992951267,6.4975147,3078.1,3077.3,0.00080632]
[1767992951268,3.24875735,3078.1,3077.3,0.00080632]
[1767992951473,3.24875735,3078.1,3077.3,0.92355712]
[1767992952058,3.24875735,3078.1,3077.3,0.00080632]
[1767992952059,6.4975147,3078.1,3077.3,0.00080632]
[1767992952371,0.00080632,3077.7,3077.0,0.9227508]
[1767992952540,0.00080632,3077.7,3076.8,0.255]
[1767992953269,0.00080632,3077.7,3076.7,0.92355576]
[1767992953436,0.00080632,3077.7,3076.7,1.17855576]
[1767992953640,0.65393596,3077.7,3076.7,1.17855576]
[1767992954142,0.65393596,3077.7,3076.8,0.9227508]
[1767992955180,0.65393596,3077.7,3076.7,0.25580496]
[1767992955181,3.28183829,3077.6,3076.7,0.00080496]
[1767992955378,0.03255314,3077.4,3076.7,0.00080496]
[1767992955546,1.01384931,3077.4,3076.7,0.00080496]
[1767992955743,1.01384931,3077.4,3077.0,0.002]
[1767992956075,1.01384931,3077.4,3076.7,0.00080496]
[1767992957150,3.24960192,3077.3,3076.7,0.00080496]
[1767992957368,1.01384931,3077.4,3076.8,0.9227508]
[1767992957681,0.00080632,3077.7,3076.8,0.76214721]
[1767992959264,0.00080632,3077.7,3077.0,0.9227508]
[1767992961373,0.00080632,3077.7,3077.2,0.9227508]
[1767992961971,0.00080632,3077.7,3077.3,0.256]
[1767992962178,0.00080632,3077.7,3077.4,0.9227508]
[1767992963364,0.00080632,3077.7,3077.0,0.9227508]
[1767992963579,0.00080632,3077.7,3077.2,0.9227508]